[Event "FIDE Open World Rapid 2024"]
[Site "New York"]
[Date "2024.12.27"]
[Round "7.3"]
[White "Martirosyan, Haik M."]
[Black "Zarnicki, Pablo"]
[Result "1/2-1/2"]
[ECO "C42"]
[WhiteElo "2656"]
[BlackElo "2514"]
[Annotator "ChessBase"]
[PlyCount "183"]
[EventDate "2024.12.14"]
[EventType "swiss"]
[EventCountry "USA"]
[SourceTitle "playchess.com"]
[Source "ChessBase"]
[SourceQuality "1"]
[TimeControl "900+10"]

1. e4 {[%emt 0:00:04]} e5 {[%emt 0:00:03]} 2. Nf3 {[%emt 0:00:03]} Nf6 {[%emt 0:00:02]} 3. Nxe5 {[%emt 0:00:25]} d6 {[%emt 0:00:02]} 4. Nf3 {[%emt 0:00:03]} Nxe4 {[%emt 0:00:02]} 5. Bd3 {[%emt 0:00:22]} Nf6 {[%emt 0:00:12]} 6. O-O {[%emt 0:00:07]} Be7 {[%emt 0:00:02]} 7. c3 {[%emt 0:00:19]} O-O {[%emt 0:00:17]} 8. Bc2 {[%emt 0:00:05]} Bg4 {[%emt 0:00:05]} 9. d4 {[%emt 0:00:03]} Nbd7 {[%emt 0:00:23]} 10. Nbd2 {[%emt 0:00:07]} Re8 {[%emt 0:00:13]} 11. Re1 {[%emt 0:00:34]} d5 {[%emt 0:00:33]} 12. Nf1 {[%emt 0:00:49]} Bd6 {[%emt 0:00:14]} 13. Rxe8+ {[%emt 0:00:21]} Qxe8 {[%emt 0:00:01]} 14. Ne3 {[%emt 0:01:59]} Bh5 {[%emt 0:02:01]} 15. Nf5 {[%emt 0:00:02]} Bxf3 {[%emt 0:00:20]} 16. gxf3 {[%emt 0:00:04]} Qe6 {[%emt 0:00:50]} 17. Be3 {[%emt 0:01:39]} Re8 {[%emt 0:00:29]} 18. Qd2 {[%emt 0:00:38]} Nh5 {[%emt 0:01:11]} 19. Kh1 {[%emt 0:03:17]} g6 {[%emt 0:00:55]} 20. Rg1 {[%emt 0:00:41]} Kh8 {[%emt 0:00:52]} 21. Nxd6 {[%emt 0:00:02]} Qxd6 {[%emt 0:00:30]} 22. Bd1 {[%emt 0:00:43]} f5 {[%emt 0:01:10]} 23. Bh6 {[%emt 0:00:32]} Ndf6 {[%emt 0:00:36]} 24. Re1 {[%emt 0:00:12]} Re6 {[%emt 0:00:25]} 25. Re3 {[%emt 0:00:28]} Ng8 {[%emt 0:01:37]} 26. Bf8 {[%emt 0:00:05]} Qd7 {[%emt 0:02:13]} 27. Qe1 {[%emt 0:00:01]} Nf4 {[%emt 0:00:21]} 28. Bc2 {[%emt 0:00:28]} Qf7 {[%emt 0:00:26]} 29. Bc5 {[%emt 0:00:33]} b6 {[%emt 0:00:02]} 30. Ba3 {[%emt 0:00:01]} Nf6 {[%emt 0:00:14]} 31. b3 {[%emt 0:00:20]} N6h5 {[%emt 0:00:27]} 32. Bc1 {[%emt 0:00:20]} Qf6 {[%emt 0:00:12]} 33. a4 {[%emt 0:00:31]} Qg5 {[%emt 0:01:06]} 34. Qf1 {[%emt 0:00:07]} Qh4 {[%emt 0:00:04]} 35. Bd2 {[%emt 0:00:28]} Rxe3 {[%emt 0:00:18]} 36. Bxe3 {[%emt 0:00:01]} c6 {[%emt 0:00:26]} 37. Bd2 {[%emt 0:00:34]} Qh3 {[%emt 0:00:32]} 38. Qxh3 {[%emt 0:00:06]} Nxh3 {[%emt 0:00:01]} 39. Kg2 {[%emt 0:00:01]} N3f4+ {[%emt 0:00:02]} 40. Kf1 {[%emt 0:00:01]} Kg7 {[%emt 0:00:06]} 41. c4 {[%emt 0:00:24]} Kf7 {[%emt 0:00:07]} 42. c5 {[%emt 0:00:23]} b5 {[%emt 0:00:21]} 43. Bc3 {[%emt 0:00:58]} bxa4 {[%emt 0:00:07]} 44. bxa4 {[%emt 0:00:01]} Ke6 {[%emt 0:00:13]} 45. Ke1 {[%emt 0:00:07]} Kd7 {[%emt 0:00:25]} 46. Kd2 {[%emt 0:00:01]} Ne6 {[%emt 0:00:12]} 47. Ke3 {[%emt 0:00:06]} Nhf4 {[%emt 0:00:01]} 48. Bd1 {[%emt 0:00:20]} Ng2+ {[%emt 0:00:07]} 49. Kd3 {[%emt 0:00:01]} Ngf4+ {[%emt 0:00:02]} 50. Kd2 {[%emt 0:00:01]} h5 {[%emt 0:00:06]} 51. Bc2 {[%emt 0:00:23]} h4 {[%emt 0:00:04]} 52. Bd1 {[%emt 0:00:05]} Nh3 {[%emt 0:00:04]} 53. Ke3 {[%emt 0:00:23]} Nhf4 {[%emt 0:00:16]} 54. a5 {[%emt 0:00:17]} Ng2+ {[%emt 0:00:04]} 55. Kd2 {[%emt 0:00:06]} Ngf4 {[%emt 0:00:04]} 56. Ke3 {[%emt 0:00:51]} Ng2+ {[%emt 0:00:07]} 57. Kd3 {[%emt 0:00:01]} Ngf4+ {[%emt 0:00:03]} 58. Kd2 {[%emt 0:00:00]} Nh3 {[%emt 0:00:08]} 59. Ke1 {[%emt 0:00:46]} Nhf4 {[%emt 0:00:04]} 60. Kf1 {[%emt 0:00:03]} Nc7 {[%emt 0:00:07]} 61. Ba4 {[%emt 0:00:08]} a6 {[%emt 0:00:20]} 62. Ke1 {[%emt 0:00:07]} Nb5 {[%emt 0:00:37]} 63. Kd2 {[%emt 0:00:17]} Ne6 {[%emt 0:00:22]} 64. Kd3 {[%emt 0:00:12]} Nf4+ {[%emt 0:00:07]} 65. Kd2 {[%emt 0:00:01]} Nh3 {[%emt 0:00:28]} 66. Bb2 {[%emt 0:00:14]} Nxf2 {[%emt 0:00:34]} 67. Ke3 {[%emt 0:00:01]} Nh3 {[%emt 0:00:04]} 68. f4 {[%emt 0:00:01]} Ke6 {[%emt 0:00:27]} 69. Bd1 {[%emt 0:00:39]} g5 {[%emt 0:00:05]} 70. fxg5 {[%emt 0:00:08]} Nxg5 {[%emt 0:00:02]} 71. Bh5 {[%emt 0:00:02]} Kd7 {[%emt 0:00:29]} 72. Bg6 {[%emt 0:00:13]} Ke6 {[%emt 0:00:02]} 73. Be8 {[%emt 0:00:10]} Na7 {[%emt 0:00:01]} 74. Bc1 {[%emt 0:00:20]} Ke7 {[%emt 0:00:07]} 75. Bh5 {[%emt 0:00:03]} Kf6 {[%emt 0:00:01]} 76. Kd3 {[%emt 0:00:14]} Ne6 {[%emt 0:00:09]} 77. Be3 {[%emt 0:00:01]} f4 {[%emt 0:00:05]} 78. Bf2 {[%emt 0:00:00]} Kg5 {[%emt 0:00:11]} 79. Be2 {[%emt 0:00:25]} Nb5 {[%emt 0:00:07]} 80. h3 {[%emt 0:00:06]} f3 {[%emt 0:00:15]} 81. Bxf3 {[%emt 0:00:29]} Nf4+ {[%emt 0:00:01]} 82. Ke3 {[%emt 0:00:07]} Nxh3 {[%emt 0:00:10]} 83. Be1 {[%emt 0:00:22]} Nf4 {[%emt 0:00:13]} 84. Bxh4+ {[%emt 0:01:37]} Kxh4 {[%emt 0:00:04]} 85. Kxf4 {[%emt 0:00:01]} Nxd4 {[%emt 0:00:01]} 86. Bxd5 {[%emt 0:00:35]} cxd5 {[%emt 0:00:09]} 87. Ke5 {[%emt 0:00:00]} Nc6+ {[%emt 0:00:36]} 88. Kxd5 {[%emt 0:00:01]} Nxa5 {[%emt 0:00:01]} 89. c6 {[%emt 0:00:01]} Nxc6 {[%emt 0:00:02]} 90. Kxc6 {[%emt 0:00:00]} a5 {[%emt 0:00:01]} 91. Kb5 {[%emt 0:00:01]} a4 {[%emt 0:00:00]} 92. Kxa4 {[%emt 0:00:01]} 1/2-1/2

[Event "FIDE Open World Rapid 2024"]
[Site "New York"]
[Date "2024.12.27"]
[Round "7.4"]
[White "Erigaisi Arjun"]
[Black "Murzin, Volodar"]
[Result "1/2-1/2"]
[ECO "D35"]
[WhiteElo "2801"]
[BlackElo "2664"]
[Annotator "TA"]
[PlyCount "138"]
[EventDate "2024.12.14"]
[EventType "swiss"]
[EventCountry "USA"]
[SourceTitle "playchess.com"]
[Source "ChessBase"]
[SourceQuality "1"]
[TimeControl "900+10"]

{[%evp 69,138,-75,-58,-55,-30,-101,-42,-231,-227,-286,-277,-241,-261,-239,-226,-304,-159,-239,-247,-246,-190,-190,-191,-191,-190,-191,-41,-39,0,0,0,0,0,0,0,0,0,0,0,0,0,0,0,0,0,0,0,-8,0,0,0,0,0,0,0,-8,0,0,0,0,0,0,0,0,0,0,0,-8,-8,-8,-8]} 1. d4 {[%emt 0:00:01]} d5 {[%emt 0:00:01]} 2. c4 {[%emt 0:00:03]} c6 {[%emt 0:00:02]} 3. Nf3 {[%emt 0:00:03]} Nf6 {[%emt 0:00:02]} 4. Nc3 {[%emt 0:00:03]} e6 {[%emt 0:00:06]} 5. cxd5 {[%emt 0:00:03]} exd5 {[%emt 0:00:29]} 6. Bf4 {[%emt 0:00:02]} Bf5 {[%emt 0:00:12]} 7. e3 {[%emt 0:00:06]} Nbd7 {[%emt 0:00:06]} 8. h3 {[%emt 0:00:05]} h6 {[%emt 0:00:04]} 9. a3 {[%emt 0:00:11]} Be7 {[%emt 0:00:23]} 10. g4 {[%emt 0:00:10]} Bh7 {[%emt 0:00:01]} 11. Bd3 {[%emt 0:00:02]} Ne4 {[%emt 0:02:36]} 12. Qc2 {[%emt 0:03:00]} Ndf6 {[%emt 0:00:18]} 13. Ne5 {[%emt 0:00:06]} Rc8 {[%emt 0:04:07]} 14. f3 {[%emt 0:01:41]} Nxc3 {[%emt 0:00:07]} 15. bxc3 {[%emt 0:00:33]} Bxd3 {[%emt 0:00:02]} 16. Nxd3 {[%emt 0:00:43]} Nd7 {[%emt 0:01:00]} 17. O-O {[%emt 0:01:31]} O-O {[%emt 0:00:12]} 18. Qb3 {[%emt 0:00:49]} Qb6 {[%emt 0:00:42]} 19. Rfb1 {[%emt 0:00:02]} Qxb3 {[%emt 0:00:13]} 20. Rxb3 {[%emt 0:00:02]} b6 {[%emt 0:00:03]} 21. a4 {[%emt 0:01:34]} c5 {[%emt 0:01:33]} 22. Ne1 {[%emt 0:00:03]} a6 {[%emt 0:00:33]} 23. Kf1 {[%emt 0:00:13]} cxd4 {[%emt 0:00:32]} 24. cxd4 {[%emt 0:02:13]} Rc4 {[%emt 0:00:14]} 25. Nd3 {[%emt 0:00:17]} Rfc8 {[%emt 0:00:56]} 26. Bg3 {[%emt 0:00:11]} g5 {[%emt 0:01:20]} 27. Be1 {[%emt 0:00:07]} f6 {[%emt 0:00:04]} 28. a5 {[%emt 0:02:46]} b5 {[%emt 0:00:07]} 29. Bb4 {[%emt 0:00:02]} Bd8 {[%emt 0:00:30]} 30. Bc5 {[%emt 0:01:17]} Kf7 {[%emt 0:00:07]} 31. Ke1 {[%emt 0:00:08]} Nxc5 {[%emt 0:00:32]} 32. Nxc5 {[%emt 0:00:06]} Rc6 {[%emt 0:00:02]} 33. Kd1 {[%emt 0:00:44]} Be7 {[%emt 0:00:07]} 34. Nd3 {[%emt 0:00:03]} Rc2 {[%emt 0:01:10]} 35. Rc1 {[%emt 0:01:05] [#]} Rxc1+ $1 {[%emt 0:00:01]} 36. Nxc1 {[%emt 0:00:01]} Rc4 {[%emt 0:00:01]} 37. Ne2 {[%emt 0:00:26]} (37. Nd3 $11 {remains equal.}) 37... Bb4 {[%emt 0:00:18]} ({Black should try} 37... Bd6 $17 38. Rb1 Ra4) 38. Ng3 $2 {[%emt 0:00:04]} ({White should play} 38. Nc1 $1 $15) 38... Bxa5 $19 {[%emt 0:00:34]} 39. Nf5 {[%emt 0:00:03]} Bb4 {[%emt 0:00:23]} 40. e4 {[%emt 0:00:23] [#]} dxe4 $1 {[%emt 0:00:23]} 41. fxe4 {[%emt 0:00:04]} a5 {[%emt 0:00:24]} 42. Re3 {[%emt 0:00:38]} Bf8 {[%emt 0:00:20]} (42... Ke6 $19 {White must now prevent ...a4.} 43. e5 Rc3 (43... a4 $2 44. exf6+ Kxf6 45. Re5 $17)) 43. e5 {[%emt 0:00:06]} (43. Re2 $17) 43... fxe5 $19 {[%emt 0:00:06]} 44. Rxe5 {[%emt 0:00:05]} Rb4 {[%emt 0:00:22]} 45. d5 {[%emt 0:00:18]} a4 {[%emt 0:00:32]} 46. d6 {[%emt 0:00:14]} a3 {[%emt 0:00:05]} 47. Kc2 {[%emt 0:00:02]} a2 {[%emt 0:00:38]} (47... Rb2+ $19 48. Kc1 Rh2) 48. Re1 $15 {[%emt 0:00:02]} Rb1 {[%emt 0:00:13]} (48... Ra4 {is interesting.} 49. d7 Ra8 50. Kb2 b4) 49. Rxb1 {[%emt 0:00:07]} axb1=Q+ {[%emt 0:00:05]} 50. Kxb1 {[%emt 0:00:01]} Ke6 {[%emt 0:00:09]} 51. Kc2 {[%emt 0:00:12]} Bxd6 {[%emt 0:00:18]} 52. Nxh6 {[%emt 0:00:08]} Be7 {[%emt 0:00:09]} 53. Nf5 {[%emt 0:00:04]} Bf6 {[%emt 0:00:00]} 54. Kb3 {[%emt 0:00:03]} Kd5 {[%emt 0:00:05]} 55. Kb4 {[%emt 0:00:11]} Kc6 {[%emt 0:00:01]} 56. Ng3 {[%emt 0:00:11]} Be7+ {[%emt 0:00:02]} 57. Kb3 {[%emt 0:00:03]} Kc5 {[%emt 0:00:05]} 58. Ne4+ {[%emt 0:00:07]} Kd5 {[%emt 0:00:11]} 59. Nc3+ {[%emt 0:00:07]} Kc6 {[%emt 0:00:02]} 60. Ne4 {[%emt 0:00:02]} Kd5 {[%emt 0:00:16]} 61. Nc3+ {[%emt 0:00:02]} Kc5 {[%emt 0:00:01]} 62. Ne4+ {[%emt 0:00:01]} Kc6 {[%emt 0:00:00]} 63. Nc3 {[%emt 0:00:21]} Bf6 {[%emt 0:00:10]} 64. Ne4 {[%emt 0:00:04]} Bd8 {[%emt 0:00:01]} 65. Kb4 {[%emt 0:00:06]} Be7+ {[%emt 0:00:13]} 66. Kb3 {[%emt 0:00:02]} Kd5 {[%emt 0:00:13]} 67. Nc3+ {[%emt 0:00:02]} Kc5 {[%emt 0:00:02]} 68. Ne4+ {[%emt 0:00:02]} Kd4 {[%emt 0:00:12]} 69. Nxg5 {[%emt 0:00:03]} Bxg5 {[%emt 0:00:02]} 1/2-1/2

[Event "FIDE Open World Rapid 2024"]
[Site "New York"]
[Date "2024.12.27"]
[Round "7.4"]
[White "Volokitin, Andrei"]
[Black "Samadov, Read"]
[Result "1-0"]
[ECO "B48"]
[WhiteElo "2649"]
[BlackElo "2501"]
[Annotator "ChessBase"]
[PlyCount "59"]
[EventDate "2024.12.14"]
[EventType "swiss"]
[EventCountry "USA"]
[SourceTitle "playchess.com"]
[Source "ChessBase"]
[SourceQuality "1"]
[TimeControl "900+10"]

1. e4 {[%emt 0:00:02]} c5 {[%emt 0:00:04]} 2. Nf3 {[%emt 0:00:02]} e6 {[%emt 0:00:06]} 3. d4 {[%emt 0:00:04]} cxd4 {[%emt 0:00:04]} 4. Nxd4 {[%emt 0:00:02]} Nc6 {[%emt 0:00:03]} 5. Nc3 {[%emt 0:00:03]} Qc7 {[%emt 0:00:05]} 6. Be3 {[%emt 0:00:06]} a6 {[%emt 0:00:19]} 7. a3 {[%emt 0:00:23]} b5 {[%emt 0:01:55]} 8. Nxc6 {[%emt 0:00:03]} Qxc6 {[%emt 0:00:06]} 9. h4 {[%emt 0:01:08]} Nf6 {[%emt 0:01:36]} 10. e5 {[%emt 0:08:16]} Ne4 {[%emt 0:01:00]} 11. Nxe4 {[%emt 0:00:02]} Qxe4 {[%emt 0:00:03]} 12. Qd4 {[%emt 0:00:03]} Bb7 {[%emt 0:02:51]} 13. O-O-O {[%emt 0:01:07]} Qxd4 {[%emt 0:01:04]} 14. Bxd4 {[%emt 0:00:02]} h5 {[%emt 0:01:18]} 15. Bc3 {[%emt 0:04:19]} Bc5 {[%emt 0:01:26]} 16. Rd2 {[%emt 0:00:19]} Rc8 {[%emt 0:00:57]} 17. Rh3 {[%emt 0:00:15]} Rg8 {[%emt 0:01:08]} 18. Bb4 {[%emt 0:00:24]} Ke7 {[%emt 0:01:18]} 19. Rhd3 {[%emt 0:00:38]} Bd5 {[%emt 0:01:38]} 20. f4 {[%emt 0:00:41]} f6 {[%emt 0:00:18]} 21. Be2 {[%emt 0:00:05]} fxe5 {[%emt 0:00:30]} 22. fxe5 {[%emt 0:00:02]} Rc7 {[%emt 0:00:20]} 23. Bxh5 {[%emt 0:00:36]} Rh8 {[%emt 0:00:21]} 24. Bf3 {[%emt 0:00:10]} Bxb4 {[%emt 0:00:10]} 25. axb4 {[%emt 0:00:01]} Bxf3 {[%emt 0:00:02]} 26. Rxf3 {[%emt 0:00:02]} Rxh4 {[%emt 0:00:03]} 27. Rdf2 {[%emt 0:00:02]} Rcc4 {[%emt 0:00:27]} 28. Rf8 {[%emt 0:00:11]} Rh1+ {[%emt 0:00:23]} 29. Kd2 {[%emt 0:00:01]} Rd4+ {[%emt 0:00:04]} 30. Ke3 {[%emt 0:00:04]} 1-0

[Event "FIDE Open World Rapid 2024"]
[Site "New York"]
[Date "2024.12.27"]
[Round "7.5"]
[White "Firouzja, Alireza"]
[Black "Sargsyan, Shant"]
[Result "1/2-1/2"]
[ECO "C24"]
[WhiteElo "2763"]
[BlackElo "2646"]
[Annotator "TA"]
[PlyCount "130"]
[EventDate "2024.12.14"]
[EventType "swiss"]
[EventCountry "USA"]
[SourceTitle "playchess.com"]
[Source "ChessBase"]
[SourceQuality "1"]
[TimeControl "900+10"]

{[%evp 55,130,12,8,12,24,32,27,22,26,17,50,18,24,22,61,54,54,23,63,64,81,81,81,81,81,81,81,81,81,81,81,81,81,66,81,81,81,81,81,81,820,608,1549,1367,1546,1588,1520,1272,1262,1129,750,43,43,8,8,8,8,8,8,8,29,8,8,8,8,8,8,8,8,8,8,8,8,8,8,8,8]} 1. e4 {[%emt 0:00:01]} e5 {[%emt 0:00:02]} 2. Nf3 {[%emt 0:00:01]} Nc6 {[%emt 0:00:01]} 3. Bc4 {[%emt 0:00:02]} Nf6 {[%emt 0:00:02]} 4. d3 {[%emt 0:00:01]} Bc5 {[%emt 0:00:01]} 5. O-O {[%emt 0:00:08]} O-O {[%emt 0:00:03]} 6. h3 {[%emt 0:00:11]} d5 {[%emt 0:00:02]} 7. exd5 {[%emt 0:00:02]} Nxd5 {[%emt 0:00:01]} 8. Nbd2 {[%emt 0:00:24]} a5 {[%emt 0:00:01]} 9. a4 {[%emt 0:00:25]} f6 {[%emt 0:02:36]} 10. d4 {[%emt 0:01:52]} exd4 {[%emt 0:01:24]} 11. Nb3 {[%emt 0:00:12]} Bb6 {[%emt 0:00:03]} 12. Nbxd4 {[%emt 0:00:07]} Nxd4 {[%emt 0:00:05]} 13. Nxd4 {[%emt 0:00:02]} Kh8 {[%emt 0:00:27]} 14. c3 {[%emt 0:01:00]} Bxd4 {[%emt 0:02:08]} 15. Qxd4 {[%emt 0:00:15]} Nb6 {[%emt 0:00:01]} 16. Qxd8 {[%emt 0:00:04]} Rxd8 {[%emt 0:00:01]} 17. Bb3 {[%emt 0:00:04]} Nd5 {[%emt 0:02:10]} 18. Re1 {[%emt 0:00:52]} Bf5 {[%emt 0:00:05]} 19. g4 {[%emt 0:04:53]} Bg6 {[%emt 0:00:13]} 20. f4 {[%emt 0:00:02]} Bf7 {[%emt 0:01:20]} 21. f5 {[%emt 0:00:03]} Kg8 {[%emt 0:00:18]} 22. Kf2 {[%emt 0:00:28]} Rd7 {[%emt 0:00:22]} 23. Bc2 {[%emt 0:00:47]} Rad8 {[%emt 0:00:37]} 24. Kg3 {[%emt 0:00:18]} h6 {[%emt 0:00:21]} 25. h4 {[%emt 0:00:41]} b6 {[%emt 0:01:24]} 26. Re2 {[%emt 0:01:46]} Re8 {[%emt 0:02:02]} 27. Rxe8+ {[%emt 0:00:20]} Bxe8 {[%emt 0:00:01]} 28. g5 {[%emt 0:00:17]} hxg5 {[%emt 0:00:20]} 29. hxg5 {[%emt 0:00:01]} fxg5 {[%emt 0:00:22]} 30. Bxg5 {[%emt 0:00:01]} Nf6 {[%emt 0:00:08]} 31. Re1 {[%emt 0:00:22]} Bf7 {[%emt 0:00:02]} 32. Kh4 {[%emt 0:00:07]} Kf8 {[%emt 0:00:22]} 33. Bf4 {[%emt 0:00:04]} Nh5 {[%emt 0:01:32]} 34. Be5 {[%emt 0:00:40]} Re7 {[%emt 0:01:04]} 35. Kg5 {[%emt 0:00:59]} Nf6 {[%emt 0:00:07]} 36. Bg3 {[%emt 0:00:42]} Rxe1 {[%emt 0:00:19]} 37. Bxe1 {[%emt 0:00:01]} Ke7 {[%emt 0:00:10]} 38. Bg3 {[%emt 0:00:03]} Kd7 {[%emt 0:00:22]} 39. Be5 {[%emt 0:00:07]} Nh7+ {[%emt 0:00:01]} 40. Kf4 {[%emt 0:00:14]} Nf6 {[%emt 0:00:01]} 41. Bd3 {[%emt 0:01:09]} c6 {[%emt 0:00:41]} 42. Bd4 {[%emt 0:00:11]} c5 {[%emt 0:00:26]} 43. Be5 {[%emt 0:00:10]} Ke7 {[%emt 0:00:14]} 44. Bb5 {[%emt 0:00:44]} Kd8 {[%emt 0:00:15]} 45. c4 {[%emt 0:00:58]} Kc8 {[%emt 0:00:11]} 46. b3 {[%emt 0:00:34]} Kd8 {[%emt 0:00:07]} 47. Bc6 {[%emt 0:00:05]} Be8 $2 {[%emt 0:00:12][%mdl 8192]} (47... Kc8 $16) 48. Bxe8 $18 {[%emt 0:00:17]} Kxe8 {[%emt 0:00:10]} 49. Bc7 {[%emt 0:00:03]} Nd7 {[%emt 0:00:01] [#]} 50. Ke4 $1 {[%emt 0:00:04]} Nf6+ {[%emt 0:00:12]} 51. Ke5 {[%emt 0:00:19]} Ke7 {[%emt 0:00:10] [#]} 52. Kf4 $1 {[%emt 0:00:13]} (52. Bxb6 $2 {too greedy.} Nd7+ 53. Kd5 Nxb6+ $19) 52... Nd7 {[%emt 0:00:04]} 53. Kg5 $2 {[%emt 0:00:01]} (53. Ke4 $18 {Hoping for Kd5.} Nf6+ 54. Ke5) 53... Kf7 $14 {[%emt 0:00:15]} 54. Bh2 {[%emt 0:00:03]} Nf6 {[%emt 0:00:10]} 55. Be5 {[%emt 0:00:06]} Ne4+ {[%emt 0:00:18]} 56. Kf4 {[%emt 0:00:02]} Nd2 {[%emt 0:00:01]} 57. Bc7 {[%emt 0:00:14]} Nxb3 {[%emt 0:00:04]} 58. Bxb6 {[%emt 0:00:01]} Nd2 $1 {[%emt 0:00:20]} 59. Bxa5 {[%emt 0:00:24]} Nxc4 {[%emt 0:00:02]} 60. Bc7 {[%emt 0:00:01]} Ke7 {[%emt 0:00:17]} 61. Ke4 {[%emt 0:00:19]} Kd7 {[%emt 0:00:17]} 62. Be5 {[%emt 0:00:02]} Kc6 {[%emt 0:00:09]} 63. Bxg7 {[%emt 0:00:04]} Nd6+ {[%emt 0:00:01]} 64. Kf4 {[%emt 0:00:04]} (64. Ke5 $5 c4 65. Kf4 $18) 64... Nxf5 {[%emt 0:00:02]} 65. Kxf5 {[%emt 0:00:01]} c4 {[%emt 0:00:05]} 1/2-1/2

[Event "FIDE Open World Rapid 2024"]
[Site "New York"]
[Date "2024.12.27"]
[Round "7.5"]
[White "Rakhmanov, Aleksandr"]
[Black "Amartuvshin, Ganzorig"]
[Result "1-0"]
[ECO "A19"]
[WhiteElo "2585"]
[BlackElo "2392"]
[Annotator "ChessBase"]
[PlyCount "75"]
[EventDate "2024.12.14"]
[EventType "swiss"]
[EventCountry "USA"]
[SourceTitle "playchess.com"]
[Source "ChessBase"]
[SourceQuality "1"]
[TimeControl "900+10"]

1. c4 {[%emt 0:00:10]} Nf6 {[%emt 0:00:02]} 2. Nc3 {[%emt 0:00:01]} e6 {[%emt 0:00:02]} 3. e4 {[%emt 0:00:15]} c5 {[%emt 0:01:48]} 4. e5 {[%emt 0:00:06]} Ng8 {[%emt 0:00:03]} 5. d4 {[%emt 0:00:08]} cxd4 {[%emt 0:00:07]} 6. Qxd4 {[%emt 0:00:02]} Nc6 {[%emt 0:00:02]} 7. Qe4 {[%emt 0:01:50]} d6 {[%emt 0:00:44]} 8. Nf3 {[%emt 0:00:57]} dxe5 {[%emt 0:01:07]} 9. Nxe5 {[%emt 0:00:03]} Qd4 {[%emt 0:02:26]} 10. Nxc6 {[%emt 0:01:04]} Qxe4+ {[%emt 0:00:02]} 11. Nxe4 {[%emt 0:00:01]} bxc6 {[%emt 0:00:01]} 12. Bf4 {[%emt 0:00:16]} f6 {[%emt 0:01:55]} 13. O-O-O {[%emt 0:00:36]} e5 {[%emt 0:00:18]} 14. Be3 {[%emt 0:00:56]} Bf5 {[%emt 0:00:20]} 15. Bd3 {[%emt 0:03:44]} O-O-O {[%emt 0:01:16]} 16. f3 {[%emt 0:03:58]} Kb7 {[%emt 0:01:11]} 17. Bc2 {[%emt 0:00:17]} Re8 {[%emt 0:00:40]} 18. Nxf6 {[%emt 0:01:31]} Nxf6 {[%emt 0:00:15]} 19. Bxf5 {[%emt 0:00:04]} Bb4 {[%emt 0:00:02]} 20. Bg5 {[%emt 0:01:16]} Re7 {[%emt 0:00:03]} 21. Kc2 {[%emt 0:00:25]} Bc5 {[%emt 0:02:18]} 22. Rhe1 {[%emt 0:00:02]} h6 {[%emt 0:00:20]} 23. Bxf6 {[%emt 0:00:39]} gxf6 {[%emt 0:00:04]} 24. b4 {[%emt 0:00:06]} Bb6 {[%emt 0:00:51]} 25. Rd6 {[%emt 0:00:01]} Bf2 {[%emt 0:02:38]} 26. Re2 {[%emt 0:00:11]} Bg1 {[%emt 0:00:02]} 27. g3 {[%emt 0:00:33]} Rf8 {[%emt 0:00:08]} 28. c5 {[%emt 0:00:12]} a5 {[%emt 0:00:11]} 29. Rd1 {[%emt 0:00:11]} axb4 {[%emt 0:00:07]} 30. Rxg1 {[%emt 0:00:02]} Ra8 {[%emt 0:00:01]} 31. Kb1 {[%emt 0:00:04]} Ra3 {[%emt 0:00:03]} 32. Be4 {[%emt 0:00:17]} Rd7 {[%emt 0:00:04]} 33. g4 {[%emt 0:00:14]} Rd4 {[%emt 0:00:07]} 34. Rc1 {[%emt 0:00:09]} Kc7 {[%emt 0:00:09]} 35. h4 {[%emt 0:00:06]} Kd7 {[%emt 0:00:09]} 36. Rcc2 {[%emt 0:00:20]} Rd1+ {[%emt 0:00:02]} 37. Kb2 {[%emt 0:00:04]} Rh1 {[%emt 0:00:14]} 38. h5 {[%emt 0:00:05]} 1-0

[Event "FIDE Open World Rapid 2024"]
[Site "New York"]
[Date "2024.12.27"]
[Round "7.6"]
[White "Aravindh, Chithambaram VR."]
[Black "Hardaway, Brewington"]
[Result "1-0"]
[ECO "D02"]
[WhiteElo "2718"]
[BlackElo "2499"]
[Annotator "ChessBase"]
[PlyCount "51"]
[EventDate "2024.12.14"]
[EventType "swiss"]
[EventCountry "USA"]
[SourceTitle "playchess.com"]
[Source "ChessBase"]
[SourceQuality "1"]
[TimeControl "900+10"]

1. d4 {[%emt 0:00:14]} d5 {[%emt 0:00:12]} 2. Nf3 {[%emt 0:00:00]} Nf6 {[%emt 0:00:02]} 3. Bf4 {[%emt 0:00:00]} c5 {[%emt 0:00:02]} 4. e3 {[%emt 0:00:00]} Nc6 {[%emt 0:00:02]} 5. Nbd2 {[%emt 0:00:01]} cxd4 {[%emt 0:00:32]} 6. exd4 {[%emt 0:00:03]} Bf5 {[%emt 0:00:02]} 7. Bb5 {[%emt 0:01:10]} e6 {[%emt 0:00:13]} 8. Ne5 {[%emt 0:00:35]} Qb6 {[%emt 0:00:45]} 9. c4 {[%emt 0:00:03]} dxc4 {[%emt 0:00:11]} 10. a4 {[%emt 0:00:53]} Bb4 {[%emt 0:01:19]} 11. O-O {[%emt 0:00:42]} Bxd2 {[%emt 0:01:37]} 12. Qxd2 {[%emt 0:00:07]} O-O {[%emt 0:00:03]} 13. Bxc6 {[%emt 0:01:32]} bxc6 {[%emt 0:00:02]} 14. Nxc4 {[%emt 0:00:02]} Qa6 {[%emt 0:00:39]} 15. Rfc1 {[%emt 0:00:11]} Rfd8 {[%emt 0:00:24]} 16. b4 {[%emt 0:02:12]} Nd5 {[%emt 0:01:11]} 17. Na5 {[%emt 0:02:11]} Rac8 {[%emt 0:04:14]} 18. Rc4 {[%emt 0:01:13]} Qb6 {[%emt 0:01:33]} 19. Rac1 {[%emt 0:00:31]} Ne7 {[%emt 0:00:01]} 20. Rc5 {[%emt 0:00:29]} Rd5 {[%emt 0:00:39]} 21. b5 {[%emt 0:00:42]} e5 {[%emt 0:01:30]} 22. Nxc6 {[%emt 0:03:10]} Nxc6 {[%emt 0:00:03]} 23. Rxd5 {[%emt 0:00:04]} Nxd4 {[%emt 0:01:05]} 24. Rxc8+ {[%emt 0:00:03]} Bxc8 {[%emt 0:00:02]} 25. Bxe5 {[%emt 0:00:14]} Ne6 {[%emt 0:00:02]} 26. a5 {[%emt 0:00:11]} 1-0